[Event "Titled Tuesday Blitz January 18 2022"]
[White "Leiva, Gianmarco"]
[Black "Guseva, Marina"]
[WhiteFideId "3804399"]
[BlackFideId "4149351"]
[WhiteElo "2328"]
[BlackElo "2232"]
[Result "1-0"]
[Round "03"]
[TimeControl "180+1"]
[Date "2022.01.18"]
[WhiteClock "0:00:06"]
[BlackClock "0:00:02"]

1. e4 {[%clk 0:02:55]}  c5 {[%clk 0:02:59]} 2. Nf3 {[%clk 0:02:55]}  d6 {[%clk 0:02:58]} 3. d4 {[%clk 0:02:55]}  cxd4 {[%clk 0:02:58]} 4. Nxd4 {[%clk 0:02:55]}  Nf6 {[%clk 0:02:58]} 5. Nc3 {[%clk 0:02:55]}  a6 {[%clk 0:02:57]} 6. a3 {[%clk 0:02:45]}  e5 {[%clk 0:02:45]} 7. Nf5 {[%clk 0:02:43]}  d5 {[%clk 0:02:44]} 8. Bg5 {[%clk 0:02:41]}  d4 {[%clk 0:02:43]} 9. Bxf6 {[%clk 0:02:40]}  gxf6 {[%clk 0:02:42]} 10. Ne2 {[%clk 0:02:30]}  Bxf5 {[%clk 0:02:40]} 11. exf5 {[%clk 0:02:30]}  Qd5 {[%clk 0:02:27]} 12. Qd3 {[%clk 0:02:27]}  Nd7 {[%clk 0:02:22]} 13. Nc3 {[%clk 0:02:26]}  Qa5 {[%clk 0:02:20]} 14. O-O-O {[%clk 0:02:21]}  Nc5 {[%clk 0:02:12]} 15. Qf3 {[%clk 0:01:56]}  dxc3 {[%clk 0:02:10]} 16. Bc4 {[%clk 0:01:56]}  cxb2+ {[%clk 0:02:08]} 17. Kb1 {[%clk 0:01:57]}  Na4 {[%clk 0:01:51]} 18. Rd3 {[%clk 0:01:24]}  Qc7 {[%clk 0:00:54]} 19. Rhd1 {[%clk 0:01:17]}  Nc5 {[%clk 0:00:51]} 20. Rd5 {[%clk 0:01:05]}  Be7 {[%clk 0:00:49]} 21. Qh5 {[%clk 0:00:58]}  O-O {[%clk 0:00:35]} 22. Re1 {[%clk 0:00:56]}  Kh8 {[%clk 0:00:34]} 23. Re3 {[%clk 0:00:55]}  Rg8 {[%clk 0:00:32]} 24. Qxf7 {[%clk 0:00:43]}  Rg7 {[%clk 0:00:31]} 25. Qh5 {[%clk 0:00:43]}  Na4 {[%clk 0:00:25]} 26. Bb3 {[%clk 0:00:04]}  Nc3+ {[%clk 0:00:24]} 27. Kxb2 {[%clk 0:00:02]}  Nxd5 {[%clk 0:00:23]} 28. Bxd5 {[%clk 0:00:03]}  Rd8 {[%clk 0:00:21]} 29. Rc3 {[%clk 0:00:03]}  Qb6+ {[%clk 0:00:20]} 30. Bb3 {[%clk 0:00:04]}  Qd4 {[%clk 0:00:19]} 31. Qh3 {[%clk 0:00:04]}  Bc5 {[%clk 0:00:17]} 32. Ka2 {[%clk 0:00:04]}  Bb6 {[%clk 0:00:17]} 33. Rd3 {[%clk 0:00:04]}  Qc5 {[%clk 0:00:17]} 34. Rxd8+ {[%clk 0:00:04]}  Bxd8 {[%clk 0:00:16]} 35. Qd3 {[%clk 0:00:05]}  Qc7 {[%clk 0:00:16]} 36. Qd5 {[%clk 0:00:05]}  Be7 {[%clk 0:00:15]} 37. Qe6 {[%clk 0:00:05]}  Qd6 {[%clk 0:00:15]} 38. Qc8+ {[%clk 0:00:05]}  Bf8 {[%clk 0:00:15]} 39. g3 {[%clk 0:00:04]}  Qxa3+ {[%clk 0:00:15]} 40. Kb1 {[%clk 0:00:04]}  Qc5 {[%clk 0:00:15]} 41. Qd8 {[%clk 0:00:04]}  Qd6 {[%clk 0:00:15]} 42. Qc8 {[%clk 0:00:04]}  Rc7 {[%clk 0:00:15]} 43. Qe8 {[%clk 0:00:03]}  Qe7 {[%clk 0:00:14]} 44. Qa4 {[%clk 0:00:02]}  b5 {[%clk 0:00:14]} 45. Qg4 {[%clk 0:00:02]}  Bg7 {[%clk 0:00:12]} 46. Qh5 {[%clk 0:00:02]}  Qf8 {[%clk 0:00:12]} 47. Qf3 {[%clk 0:00:02]}  a5 {[%clk 0:00:12]} 48. Qd5 {[%clk 0:00:02]}  a4 {[%clk 0:00:11]} 49. Ba2 {[%clk 0:00:03]}  b4 {[%clk 0:00:11]} 50. Bc4 {[%clk 0:00:03]}  b3 {[%clk 0:00:11]} 51. cxb3 {[%clk 0:00:03]}  axb3 {[%clk 0:00:12]} 52. Bxb3 {[%clk 0:00:04]}  Qb8 {[%clk 0:00:11]} 53. h4 {[%clk 0:00:04]}  Rb7 {[%clk 0:00:11]} 54. Kc2 {[%clk 0:00:04]}  Rxb3 {[%clk 0:00:11]} 55. Qxb3 {[%clk 0:00:05]}  Qxb3+ {[%clk 0:00:11]} 56. Kxb3 {[%clk 0:00:06]}  Bf8 {[%clk 0:00:11]} 57. Kc4 {[%clk 0:00:06]}  Kg7 {[%clk 0:00:12]} 58. g4 {[%clk 0:00:05]}  Kf7 {[%clk 0:00:12]} 59. Kd5 {[%clk 0:00:05]}  Bb4 {[%clk 0:00:11]} 60. Ke4 {[%clk 0:00:03]}  Bd2 {[%clk 0:00:11]} 61. g5 {[%clk 0:00:02]}  Ke7 {[%clk 0:00:09]} 62. f3 {[%clk 0:00:02]}  Bf4 {[%clk 0:00:09]} 63. g6 {[%clk 0:00:02]}  Kf8 {[%clk 0:00:07]} 64. h5 {[%clk 0:00:02]}  Kg7 {[%clk 0:00:07]} 65. Kd5 {[%clk 0:00:02]}  h6 {[%clk 0:00:06]} 66. Ke6 {[%clk 0:00:02]}  Bd2 {[%clk 0:00:06]} 67. Kd5 {[%clk 0:00:03]}  Bb4 {[%clk 0:00:06]} 68. Kc4 {[%clk 0:00:03]}  Be1 {[%clk 0:00:06]} 69. Kd5 {[%clk 0:00:03]}  Kf8 {[%clk 0:00:04]} 70. Ke6 {[%clk 0:00:03]}  Bh4 {[%clk 0:00:04]} 71. Kd5 {[%clk 0:00:03]}  Ke7 {[%clk 0:00:04]} 72. Kc6 {[%clk 0:00:03]}  Bg5 {[%clk 0:00:04]} 73. Kd5 {[%clk 0:00:04]}  Bc1 {[%clk 0:00:04]} 74. Kc4 {[%clk 0:00:04]}  Ba3 {[%clk 0:00:04]} 75. Kd3 {[%clk 0:00:04]}  Ke8 {[%clk 0:00:04]} 76. Kc4 {[%clk 0:00:05]}  Bf8 {[%clk 0:00:03]} 77. Kd5 {[%clk 0:00:05]}  Kd7 {[%clk 0:00:04]} 78. Kc4 {[%clk 0:00:04]}  Kc6 {[%clk 0:00:04]} 79. Kc3 {[%clk 0:00:04]}  Kd5 {[%clk 0:00:04]} 80. Kd3 {[%clk 0:00:05]}  Kc5 {[%clk 0:00:02]} 81. Kc3 {[%clk 0:00:05]}  Kd5 {[%clk 0:00:02]} 82. Kd3 {[%clk 0:00:06]}  Bg7 {[%clk 0:00:02]} 83. Kd2 {[%clk 0:00:06]}  e4 {[%clk 0:00:02]} 84. Ke3 {[%clk 0:00:06]} 1-0


[Site "https://www.chess.com"]

[Event "Titled Tuesday Blitz January 18 2022"]
[White "Lugovskoy, Maxim"]
[Black "Nesterov, Arseniy"]
[WhiteFideId "24126454"]
[BlackFideId "24198455"]
[WhiteElo "2444"]
[BlackElo "2489"]
[Result "0-1"]
[Round "03"]
[TimeControl "180+1"]
[Date "2022.01.18"]
[WhiteClock "0:00:43"]
[BlackClock "0:00:17"]

1. e4 {[%clk 0:02:59]}  e5 {[%clk 0:03:00]} 2. Nf3 {[%clk 0:02:59]}  Nc6 {[%clk 0:03:00]} 3. Nc3 {[%clk 0:03:00]}  Nf6 {[%clk 0:03:00]} 4. d4 {[%clk 0:03:00]}  exd4 {[%clk 0:02:56]} 5. Nxd4 {[%clk 0:03:01]}  Nxe4 {[%clk 0:02:57]} 6. Nxe4 {[%clk 0:02:57]}  Qe7 {[%clk 0:02:57]} 7. f3 {[%clk 0:02:45]}  d5 {[%clk 0:02:57]} 8. Bb5 {[%clk 0:02:43]}  Bd7 {[%clk 0:02:53]} 9. Bxc6 {[%clk 0:02:41]}  bxc6 {[%clk 0:02:51]} 10. O-O {[%clk 0:02:41]}  dxe4 {[%clk 0:02:51]} 11. Re1 {[%clk 0:02:41]}  f5 {[%clk 0:02:44]} 12. f4 {[%clk 0:02:41]}  c5 {[%clk 0:02:28]} 13. Nb3 {[%clk 0:02:39]}  c4 {[%clk 0:02:27]} 14. Nd4 {[%clk 0:02:36]}  g6 {[%clk 0:02:22]} 15. Be3 {[%clk 0:02:35]}  Bg7 {[%clk 0:02:20]} 16. c3 {[%clk 0:02:34]}  c5 {[%clk 0:02:06]} 17. Nc2 {[%clk 0:02:32]}  Be6 {[%clk 0:02:03]} 18. Qe2 {[%clk 0:02:32]}  O-O {[%clk 0:02:02]} 19. Na3 {[%clk 0:02:32]}  Qf7 {[%clk 0:01:52]} 20. Bxc5 {[%clk 0:02:30]}  Rfd8 {[%clk 0:01:53]} 21. Rad1 {[%clk 0:02:23]}  Rd3 {[%clk 0:01:52]} 22. Nb5 {[%clk 0:02:23]}  Qb7 {[%clk 0:01:38]} 23. Nd4 {[%clk 0:02:20]}  Bf7 {[%clk 0:01:35]} 24. Kh1 {[%clk 0:02:11]}  Qc7 {[%clk 0:01:33]} 25. Ba3 {[%clk 0:01:37]}  Qxf4 {[%clk 0:01:33]} 26. Rf1 {[%clk 0:01:32]}  Qe5 {[%clk 0:01:17]} 27. Rde1 {[%clk 0:01:27]}  Qd5 {[%clk 0:01:13]} 28. Qf2 {[%clk 0:01:23]}  Re8 {[%clk 0:01:09]} 29. Qf4 {[%clk 0:01:19]}  e3 {[%clk 0:00:36]} 30. Nc2 {[%clk 0:01:16]}  Rd2 {[%clk 0:00:29]} 31. Rg1 {[%clk 0:00:50]}  Rxc2 {[%clk 0:00:28]} 32. Rxe3 {[%clk 0:00:51]}  Rxe3 {[%clk 0:00:26]} 33. Qxe3 {[%clk 0:00:52]}  h5 {[%clk 0:00:25]} 34. Qxa7 {[%clk 0:00:51]}  Qe4 {[%clk 0:00:24]} 35. Qb8+ {[%clk 0:00:45]}  Kh7 {[%clk 0:00:24]} 36. h3 {[%clk 0:00:43]}  Bd5 {[%clk 0:00:22]} 37. Qg3 {[%clk 0:00:44]}  Be5 {[%clk 0:00:21]} 38. Qg5 {[%clk 0:00:44]}  Bf6 {[%clk 0:00:17]} 39. Qg3 {[%clk 0:00:43]}  f4 {[%clk 0:00:17]} 0-1


[Site "https://www.chess.com"]

[Event "Titled Tuesday Blitz January 18 2022"]
[White "Maghsoodloo, Parham"]
[Black "Mokshanov, Alexey"]
[WhiteFideId "12539929"]
[BlackFideId "24121657"]
[WhiteElo "2630"]
[BlackElo "2141"]
[Result "1-0"]
[Round "03"]
[TimeControl "180+1"]
[Date "2022.01.18"]
[WhiteClock "0:01:04"]
[BlackClock "0:00:34"]

1. e4 {[%clk 0:02:15]}  e6 {[%clk 0:02:59]} 2. d4 {[%clk 0:02:15]}  d5 {[%clk 0:02:59]} 3. Nc3 {[%clk 0:02:16]}  Nf6 {[%clk 0:02:59]} 4. e5 {[%clk 0:02:16]}  Nfd7 {[%clk 0:02:59]} 5. f4 {[%clk 0:02:17]}  c5 {[%clk 0:02:59]} 6. Nf3 {[%clk 0:02:18]}  Nc6 {[%clk 0:03:00]} 7. Be3 {[%clk 0:02:19]}  Be7 {[%clk 0:03:01]} 8. Qd2 {[%clk 0:02:19]}  O-O {[%clk 0:03:01]} 9. dxc5 {[%clk 0:02:13]}  Bxc5 {[%clk 0:02:57]} 10. O-O-O {[%clk 0:02:12]}  Qa5 {[%clk 0:02:52]} 11. Bxc5 {[%clk 0:02:09]}  Nxc5 {[%clk 0:02:50]} 12. Kb1 {[%clk 0:02:09]}  Rb8 {[%clk 0:02:47]} 13. Bd3 {[%clk 0:01:50]}  b5 {[%clk 0:02:43]} 14. Ne2 {[%clk 0:01:46]}  b4 {[%clk 0:02:36]} 15. Nc1 {[%clk 0:01:45]}  Ba6 {[%clk 0:02:32]} 16. Nb3 {[%clk 0:01:41]}  Nxb3 {[%clk 0:02:30]} 17. cxb3 {[%clk 0:01:42]}  Bxd3+ {[%clk 0:02:25]} 18. Qxd3 {[%clk 0:01:43]}  Rb6 {[%clk 0:02:19]} 19. Ka1 {[%clk 0:01:30]}  Ra6 {[%clk 0:02:17]} 20. Qb1 {[%clk 0:01:31]}  Qc5 {[%clk 0:02:13]} 21. Rhe1 {[%clk 0:01:28]}  h6 {[%clk 0:02:02]} 22. f5 {[%clk 0:01:27]}  Rb8 {[%clk 0:01:52]} 23. fxe6 {[%clk 0:01:19]}  fxe6 {[%clk 0:01:52]} 24. Rc1 {[%clk 0:01:20]}  Qe7 {[%clk 0:01:36]} 25. Qd3 {[%clk 0:01:18]}  Rab6 {[%clk 0:01:14]} 26. Rc2 {[%clk 0:01:16]}  Qe8 {[%clk 0:00:50]} 27. Rec1 {[%clk 0:01:14]}  a5 {[%clk 0:00:50]} 28. g4 {[%clk 0:01:14]}  Ra8 {[%clk 0:00:46]} 29. Kb1 {[%clk 0:01:11]}  a4 {[%clk 0:00:44]} 30. bxa4 {[%clk 0:01:12]}  b3 {[%clk 0:00:44]} 31. axb3 {[%clk 0:01:12]}  Nb4 {[%clk 0:00:44]} 32. Qd4 {[%clk 0:01:11]}  Rxa4 {[%clk 0:00:34]} 33. Rc8 {[%clk 0:01:04]} 1-0


[Site "https://www.chess.com"]

[Event "Titled Tuesday Blitz January 18 2022"]
[White "Martin Duque, Jesus"]
[Black "Svane, Frederik"]
[WhiteFideId "2208954"]
[BlackFideId "12923044"]
[WhiteElo "2243"]
[BlackElo "2459"]
[Result "0-1"]
[Round "03"]
[TimeControl "180+1"]
[Date "2022.01.18"]
[WhiteClock "0:00:32"]
[BlackClock "0:00:06"]

1. Nf3 {[%clk 0:02:59]}  Nf6 {[%clk 0:02:59]} 2. b3 {[%clk 0:02:59]}  g6 {[%clk 0:02:58]} 3. Bb2 {[%clk 0:03:00]}  Bg7 {[%clk 0:02:59]} 4. g3 {[%clk 0:03:01]}  O-O {[%clk 0:03:00]} 5. Bg2 {[%clk 0:03:01]}  b6 {[%clk 0:02:59]} 6. O-O {[%clk 0:03:01]}  Bb7 {[%clk 0:03:00]} 7. e3 {[%clk 0:03:02]}  c5 {[%clk 0:02:57]} 8. Qe2 {[%clk 0:03:02]}  Nc6 {[%clk 0:02:54]} 9. Rd1 {[%clk 0:03:02]}  d5 {[%clk 0:02:54]} 10. d4 {[%clk 0:03:02]}  cxd4 {[%clk 0:02:54]} 11. Nxd4 {[%clk 0:03:03]}  Nxd4 {[%clk 0:02:51]} 12. Bxd4 {[%clk 0:03:04]}  Qc7 {[%clk 0:02:45]} 13. Nc3 {[%clk 0:02:52]}  Rfd8 {[%clk 0:01:51]} 14. Nb5 {[%clk 0:02:49]}  Qc8 {[%clk 0:01:47]} 15. Be5 {[%clk 0:02:35]}  a6 {[%clk 0:01:43]} 16. Nd4 {[%clk 0:02:21]}  b5 {[%clk 0:01:38]} 17. Rac1 {[%clk 0:02:17]}  Ne4 {[%clk 0:01:28]} 18. Bxe4 {[%clk 0:02:09]}  Bxe5 {[%clk 0:01:28]} 19. Bg2 {[%clk 0:02:03]}  Qc3 {[%clk 0:01:28]} 20. Qd3 {[%clk 0:01:57]}  Qa5 {[%clk 0:00:38]} 21. a4 {[%clk 0:01:50]}  bxa4 {[%clk 0:00:32]} 22. Ra1 {[%clk 0:01:50]}  Rac8 {[%clk 0:00:30]} 23. Rxa4 {[%clk 0:01:48]}  Qb6 {[%clk 0:00:19]} 24. h4 {[%clk 0:01:42]}  e6 {[%clk 0:00:19]} 25. h5 {[%clk 0:01:43]}  Rc5 {[%clk 0:00:14]} 26. hxg6 {[%clk 0:01:42]}  hxg6 {[%clk 0:00:15]} 27. Bh3 {[%clk 0:01:38]}  Kg7 {[%clk 0:00:13]} 28. Nxe6+ {[%clk 0:01:21]}  fxe6 {[%clk 0:00:14]} 29. Rg4 {[%clk 0:01:21]}  Kf7 {[%clk 0:00:15]} 30. Qxg6+ {[%clk 0:01:21]}  Ke7 {[%clk 0:00:15]} 31. Rh4 {[%clk 0:01:18]}  Kd7 {[%clk 0:00:07]} 32. Rh7+ {[%clk 0:01:16]}  Kc8 {[%clk 0:00:07]} 33. Bxe6+ {[%clk 0:01:11]}  Kb8 {[%clk 0:00:08]} 34. Qf7 {[%clk 0:01:11]}  Rc7 {[%clk 0:00:07]} 35. Qf5 {[%clk 0:00:59]}  Rxh7 {[%clk 0:00:06]} 36. Qxe5+ {[%clk 0:00:58]}  Qc7 {[%clk 0:00:07]} 37. Qf5 {[%clk 0:00:56]}  d4 {[%clk 0:00:04]} 38. e4 {[%clk 0:00:56]}  Rdh8 {[%clk 0:00:04]} 39. Kg2 {[%clk 0:00:55]}  Rh2+ {[%clk 0:00:05]} 40. Kf3 {[%clk 0:00:56]}  Qc3+ {[%clk 0:00:05]} 41. Rd3 {[%clk 0:00:56]}  Qxc2 {[%clk 0:00:04]} 42. Qe5+ {[%clk 0:00:55]}  Ka8 {[%clk 0:00:05]} 43. Qxd4 {[%clk 0:00:56]}  Rxf2+ {[%clk 0:00:03]} 44. Kg4 {[%clk 0:00:56]}  Rff8 {[%clk 0:00:01]} 45. Rc3 {[%clk 0:00:54]}  Qxe4+ {[%clk 0:00:02]} 46. Qxe4 {[%clk 0:00:54]}  Bxe4 {[%clk 0:00:02]} 47. Rc7 {[%clk 0:00:54]}  Bf3+ {[%clk 0:00:03]} 48. Kg5 {[%clk 0:00:54]}  Rh5+ {[%clk 0:00:02]} 49. Kg6 {[%clk 0:00:54]}  Rb5 {[%clk 0:00:03]} 50. g4 {[%clk 0:00:53]}  Re8 {[%clk 0:00:03]} 51. Kf6 {[%clk 0:00:52]}  Rxe6+ {[%clk 0:00:03]} 52. Kxe6 {[%clk 0:00:52]}  Bxg4+ {[%clk 0:00:03]} 53. Kd6 {[%clk 0:00:52]}  Rb6+ {[%clk 0:00:04]} 54. Rc6 {[%clk 0:00:50]}  Kb7 {[%clk 0:00:03]} 55. Rxb6+ {[%clk 0:00:45]}  Kxb6 {[%clk 0:00:04]} 56. Kd5 {[%clk 0:00:42]}  Kb5 {[%clk 0:00:04]} 57. Kd4 {[%clk 0:00:39]}  Kb4 {[%clk 0:00:05]} 58. Kd3 {[%clk 0:00:32]}  Kxb3 {[%clk 0:00:06]} 0-1


[Site "https://www.chess.com"]

[Event "Titled Tuesday Blitz January 18 2022"]
[White "Nazari, Arad"]
[Black "Perez Ponsa, Federico"]
[WhiteFideId "12577324"]
[BlackFideId "117927"]
[WhiteElo "2120"]
[BlackElo "2672"]
[Result "1-0"]
[Round "03"]
[TimeControl "180+1"]
[Date "2022.01.18"]
[WhiteClock "0:01:09"]
[BlackClock "0:01:25"]

1. Nf3 {[%clk 0:03:00]}  Nf6 {[%clk 0:02:59]} 2. g3 {[%clk 0:02:59]}  g6 {[%clk 0:02:56]} 3. Bg2 {[%clk 0:02:59]}  Bg7 {[%clk 0:02:56]} 4. O-O {[%clk 0:03:00]}  O-O {[%clk 0:02:57]} 5. c4 {[%clk 0:03:00]}  d6 {[%clk 0:02:56]} 6. Nc3 {[%clk 0:02:55]}  c6 {[%clk 0:02:56]} 7. d3 {[%clk 0:02:50]}  d5 {[%clk 0:02:55]} 8. Qc2 {[%clk 0:02:40]}  d4 {[%clk 0:02:50]} 9. Nd1 {[%clk 0:02:37]}  a5 {[%clk 0:02:45]} 10. Rb1 {[%clk 0:02:33]}  Nfd7 {[%clk 0:02:42]} 11. b3 {[%clk 0:02:22]}  Na6 {[%clk 0:02:37]} 12. a3 {[%clk 0:02:15]}  e5 {[%clk 0:02:36]} 13. e3 {[%clk 0:02:11]}  Re8 {[%clk 0:02:35]} 14. Re1 {[%clk 0:02:02]}  Nac5 {[%clk 0:02:30]} 15. b4 {[%clk 0:01:56]}  axb4 {[%clk 0:02:29]} 16. axb4 {[%clk 0:01:57]}  Ne6 {[%clk 0:02:22]} 17. c5 {[%clk 0:01:52]}  dxe3 {[%clk 0:02:12]} 18. Bxe3 {[%clk 0:01:48]}  Nf6 {[%clk 0:02:06]} 19. Nb2 {[%clk 0:01:28]}  Nd5 {[%clk 0:01:53]} 20. Nc4 {[%clk 0:01:29]}  Nxe3 {[%clk 0:01:44]} 21. Rxe3 {[%clk 0:01:24]}  Nd4 {[%clk 0:01:41]} 22. Nxd4 {[%clk 0:01:22]}  Qxd4 {[%clk 0:01:40]} 23. Rbe1 {[%clk 0:01:19]}  Be6 {[%clk 0:01:36]} 24. Nd6 {[%clk 0:01:15]}  Re7 {[%clk 0:01:25]} 25. Re4 {[%clk 0:01:15]}  Ra2 {[%clk 0:01:25]} 26. Qxa2 {[%clk 0:01:09]} 1-0


[Site "https://www.chess.com"]

[Event "Titled Tuesday Blitz January 18 2022"]
[White "Nyzhnyk, Illya"]
[Black "Ezat, Mohamed"]
[WhiteFideId "14118084"]
[BlackFideId "10600906"]
[WhiteElo "2694"]
[BlackElo "2386"]
[Result "1-0"]
[Round "03"]
[TimeControl "180+1"]
[Date "2022.01.18"]
[WhiteClock "0:01:34"]
[BlackClock "0:01:04"]

1. c4 {[%clk 0:03:00]}  Nf6 {[%clk 0:02:56]} 2. Nc3 {[%clk 0:03:00]}  g6 {[%clk 0:02:56]} 3. Nf3 {[%clk 0:03:00]}  Bg7 {[%clk 0:02:57]} 4. g3 {[%clk 0:03:01]}  O-O {[%clk 0:02:57]} 5. Bg2 {[%clk 0:03:01]}  d6 {[%clk 0:02:58]} 6. O-O {[%clk 0:03:01]}  Nc6 {[%clk 0:02:58]} 7. d4 {[%clk 0:03:01]}  Bg4 {[%clk 0:02:58]} 8. h3 {[%clk 0:02:59]}  Bxf3 {[%clk 0:02:58]} 9. Bxf3 {[%clk 0:03:00]}  Nd7 {[%clk 0:02:58]} 10. e3 {[%clk 0:03:00]}  e5 {[%clk 0:02:58]} 11. dxe5 {[%clk 0:03:00]}  dxe5 {[%clk 0:02:53]} 12. Qc2 {[%clk 0:02:48]}  Nc5 {[%clk 0:02:49]} 13. Rd1 {[%clk 0:02:46]}  Qc8 {[%clk 0:02:47]} 14. Bg2 {[%clk 0:02:45]}  Qe6 {[%clk 0:02:40]} 15. Nd5 {[%clk 0:02:42]}  Rac8 {[%clk 0:02:38]} 16. a3 {[%clk 0:02:41]}  e4 {[%clk 0:02:29]} 17. Rb1 {[%clk 0:02:41]}  f5 {[%clk 0:02:25]} 18. b4 {[%clk 0:02:39]}  Nd3 {[%clk 0:02:24]} 19. Nf4 {[%clk 0:02:26]}  Nxf4 {[%clk 0:02:22]} 20. gxf4 {[%clk 0:02:27]}  g5 {[%clk 0:02:15]} 21. c5 {[%clk 0:02:21]}  gxf4 {[%clk 0:02:13]} 22. exf4 {[%clk 0:02:21]}  Nd4 {[%clk 0:02:11]} 23. Qd2 {[%clk 0:02:18]}  Rcd8 {[%clk 0:01:44]} 24. Qe3 {[%clk 0:02:11]}  Qg6 {[%clk 0:01:34]} 25. Kh1 {[%clk 0:02:06]}  Nf3 {[%clk 0:01:18]} 26. Bxf3 {[%clk 0:01:58]}  exf3 {[%clk 0:01:17]} 27. Rg1 {[%clk 0:01:42]}  Rd1 {[%clk 0:01:15]} 28. Qb3+ {[%clk 0:01:42]}  Kh8 {[%clk 0:01:10]} 29. Qxd1 {[%clk 0:01:40]}  Qh5 {[%clk 0:01:08]} 30. Rg3 {[%clk 0:01:38]}  Re8 {[%clk 0:01:08]} 31. Be3 {[%clk 0:01:35]}  Bf6 {[%clk 0:01:04]} 32. Qxf3 {[%clk 0:01:34]} 1-0


[Site "https://www.chess.com"]

[Event "Titled Tuesday Blitz January 18 2022"]
[White "Pajeken, Jakob Leon"]
[Black "Stoleriu, George"]
[WhiteFideId "12942839"]
[BlackFideId "1227505"]
[WhiteElo "2351"]
[BlackElo "2203"]
[Result "0-1"]
[Round "03"]
[TimeControl "180+1"]
[Date "2022.01.18"]
[WhiteClock "0:00:07"]
[BlackClock "0:01:41"]

1. d4 {[%clk 0:02:58]}  e6 {[%clk 0:02:59]} 2. Nf3 {[%clk 0:02:57]}  b6 {[%clk 0:02:59]} 3. e4 {[%clk 0:02:54]}  Bb7 {[%clk 0:02:55]} 4. Bd3 {[%clk 0:02:54]}  d5 {[%clk 0:02:55]} 5. exd5 {[%clk 0:02:49]}  exd5 {[%clk 0:02:55]} 6. O-O {[%clk 0:02:47]}  Be7 {[%clk 0:02:56]} 7. a4 {[%clk 0:02:37]}  a5 {[%clk 0:02:54]} 8. Ne5 {[%clk 0:02:21]}  Nf6 {[%clk 0:02:52]} 9. Qf3 {[%clk 0:02:16]}  O-O {[%clk 0:02:52]} 10. Nc3 {[%clk 0:02:13]}  c5 {[%clk 0:02:52]} 11. Bg5 {[%clk 0:02:09]}  Nc6 {[%clk 0:02:42]} 12. Nxc6 {[%clk 0:02:08]}  Bxc6 {[%clk 0:02:43]} 13. Bb5 {[%clk 0:02:03]}  Bxb5 {[%clk 0:02:41]} 14. Nxb5 {[%clk 0:02:02]}  Ne4 {[%clk 0:02:40]} 15. Bxe7 {[%clk 0:02:01]}  Qxe7 {[%clk 0:02:41]} 16. Rfe1 {[%clk 0:02:00]}  Rfe8 {[%clk 0:02:32]} 17. c4 {[%clk 0:01:58]}  Nd2 {[%clk 0:02:17]} 18. Qd1 {[%clk 0:01:56]}  Qg5 {[%clk 0:02:17]} 19. Rxe8+ {[%clk 0:01:08]}  Rxe8 {[%clk 0:02:18]} 20. dxc5 {[%clk 0:01:02]}  bxc5 {[%clk 0:02:08]} 21. Nc7 {[%clk 0:00:51]}  Re1+ {[%clk 0:02:06]} 22. Qxe1 {[%clk 0:00:50]}  Nf3+ {[%clk 0:02:07]} 23. Kf1 {[%clk 0:00:47]}  Nxe1 {[%clk 0:02:01]} 24. Rxe1 {[%clk 0:00:46]}  h5 {[%clk 0:01:58]} 25. cxd5 {[%clk 0:00:43]}  Qf4 {[%clk 0:01:51]} 26. Ne8 {[%clk 0:00:22]}  Qc4+ {[%clk 0:01:47]} 27. Kg1 {[%clk 0:00:21]}  Qxd5 {[%clk 0:01:48]} 28. Nc7 {[%clk 0:00:18]}  Qb3 {[%clk 0:01:44]} 29. Na6 {[%clk 0:00:16]}  c4 {[%clk 0:01:43]} 30. h3 {[%clk 0:00:13]}  Qxb2 {[%clk 0:01:43]} 31. Nc7 {[%clk 0:00:08]}  c3 {[%clk 0:01:42]} 32. Nd5 {[%clk 0:00:07]}  c2 {[%clk 0:01:41]} 0-1


[Site "https://www.chess.com"]

[Event "Titled Tuesday Blitz January 18 2022"]
[White "Papasimakopoulos, Alexandros"]
[Black "Indjic, Aleksandar"]
[WhiteFideId "4244125"]
[BlackFideId "911925"]
[WhiteElo "2340"]
[BlackElo "2616"]
[Result "0-1"]
[Round "03"]
[TimeControl "180+1"]
[Date "2022.01.18"]
[WhiteClock "0:00:08"]
[BlackClock "0:00:14"]

1. d4 {[%clk 0:02:57]}  Nf6 {[%clk 0:03:00]} 2. c4 {[%clk 0:02:55]}  c5 {[%clk 0:03:00]} 3. d5 {[%clk 0:02:55]}  e6 {[%clk 0:03:00]} 4. Nc3 {[%clk 0:02:55]}  exd5 {[%clk 0:03:00]} 5. cxd5 {[%clk 0:02:56]}  d6 {[%clk 0:03:00]} 6. Nf3 {[%clk 0:02:57]}  g6 {[%clk 0:03:00]} 7. Bf4 {[%clk 0:02:57]}  Bg7 {[%clk 0:03:00]} 8. Qa4+ {[%clk 0:02:58]}  Bd7 {[%clk 0:02:56]} 9. Qb3 {[%clk 0:02:57]}  O-O {[%clk 0:02:56]} 10. Qxb7 {[%clk 0:02:48]}  Qa5 {[%clk 0:02:51]} 11. Nd2 {[%clk 0:02:35]}  Qb4 {[%clk 0:02:14]} 12. Qxa8 {[%clk 0:02:19]}  Qxf4 {[%clk 0:02:01]} 13. Qxa7 {[%clk 0:01:37]}  Ng4 {[%clk 0:02:00]} 14. Nf3 {[%clk 0:01:35]}  Qb4 {[%clk 0:01:57]} 15. Rd1 {[%clk 0:00:58]}  Qxb2 {[%clk 0:01:53]} 16. Ne4 {[%clk 0:00:57]}  Re8 {[%clk 0:01:14]} 17. Ned2 {[%clk 0:00:57]}  Bd4 {[%clk 0:01:10]} 18. e3 {[%clk 0:00:55]}  Bxe3 {[%clk 0:01:03]} 19. fxe3 {[%clk 0:00:55]}  Qc3 {[%clk 0:00:49]} 20. Be2 {[%clk 0:00:40]}  Qxe3 {[%clk 0:00:47]} 21. Ne4 {[%clk 0:00:36]}  Rxe4 {[%clk 0:00:35]} 22. Qxb8+ {[%clk 0:00:36]}  Be8 {[%clk 0:00:36]} 23. Rd2 {[%clk 0:00:33]}  Rb4 {[%clk 0:00:26]} 24. Qxd6 {[%clk 0:00:17]}  Ba4 {[%clk 0:00:15]} 25. Qg3 {[%clk 0:00:08]}  Rb1+ {[%clk 0:00:14]} 26. Rd1 {[%clk 0:00:08]}  Rxd1# {[%clk 0:00:14]} 0-1


[Site "https://www.chess.com"]